[Event "*** Titled Tuesday Blitz"]
[Site "Chess.com"]
[Date "2021.03.30"]
[Round "4"]
[White "Gentlejimmy7"]
[Black "Iskusnyh"]
[Result "1-0"]
[WhiteElo "2500"]
[BlackElo "2626"]
[TimeControl "180+1"]
[EndTime "10:37:30 PDT"]
[Termination "Gentlejimmy7 won on time"]

1. d4 {[%clk 0:03:00.9]} 1... d5 {[%clk 0:02:59.2]} 2. g3 {[%clk 0:03:00.9]}
2... Nf6 {[%clk 0:02:57.9]} 3. Bg2 {[%clk 0:03:01]} 3... c6 {[%clk 0:02:57.8]}
4. Nf3 {[%clk 0:02:59.3]} 4... Bf5 {[%clk 0:02:57.4]} 5. c4 {[%clk 0:02:59.4]}
5... e6 {[%clk 0:02:57.5]} 6. Qb3 {[%clk 0:02:59.6]} 6... Qb6 {[%clk 0:02:53.3]}
7. c5 {[%clk 0:02:59.9]} 7... Qa6 {[%clk 0:02:39.9]} 8. Bf1 {[%clk 0:02:59.1]}
8... Be4 {[%clk 0:02:27.6]} 9. Nc3 {[%clk 0:02:55.6]} 9... b6 {[%clk 0:02:13.9]}
10. e3 {[%clk 0:02:53.3]} 10... Qb7 {[%clk 0:01:37.4]} 11. Nxe4 {[%clk
0:02:48.5]} 11... Nxe4 {[%clk 0:01:36.9]} 12. cxb6 {[%clk 0:02:40.2]} 12... axb6
{[%clk 0:01:33.6]} 13. Bd3 {[%clk 0:02:32.1]} 13... Nf6 {[%clk 0:01:20.4]} 14.
O-O {[%clk 0:02:30.4]} 14... Bd6 {[%clk 0:01:17.2]} 15. a4 {[%clk 0:02:28.7]}
15... O-O {[%clk 0:01:07.3]} 16. Bd2 {[%clk 0:02:28.9]} 16... Nbd7 {[%clk
0:01:02.7]} 17. a5 {[%clk 0:02:28.8]} 17... Rfb8 {[%clk 0:00:52.1]} 18. a6
{[%clk 0:02:25.7]} 18... Qa7 {[%clk 0:00:48]} 19. Rfc1 {[%clk 0:02:26]} 19...
Rc8 {[%clk 0:00:46.2]} 20. Qa4 {[%clk 0:02:10.4]} 20... Nb8 {[%clk 0:00:28.7]}
21. b4 {[%clk 0:02:07.2]} 21... b5 {[%clk 0:00:24.7]} 22. Bxb5 {[%clk
0:02:03.8]} 22... Qb6 {[%clk 0:00:21.2]} 23. Be2 {[%clk 0:02:02.2]} 23... Rc7
{[%clk 0:00:18.4]} 24. b5 {[%clk 0:02:00.1]} 24... cxb5 {[%clk 0:00:18.2]} 25.
Qxb5 {[%clk 0:01:58.2]} 25... Qxb5 {[%clk 0:00:15.2]} 26. Bxb5 {[%clk
0:01:59.1]} 26... Rxc1+ {[%clk 0:00:14]} 27. Rxc1 {[%clk 0:01:58.4]} 27... Nxa6
{[%clk 0:00:13.3]} 28. Bxa6 {[%clk 0:01:58.1]} 28... Rxa6 {[%clk 0:00:13.8]} 29.
Rc8+ {[%clk 0:01:58.6]} 29... Bf8 {[%clk 0:00:14.5]} 30. Bb4 {[%clk 0:01:59.1]}
30... Nd7 {[%clk 0:00:14.6]} 31. Ne5 {[%clk 0:01:57.6]} 31... Ra1+ {[%clk
0:00:07.6]} 32. Kg2 {[%clk 0:01:56.9]} 32... Rc1 {[%clk 0:00:02.9]} 33. Rxc1
{[%clk 0:01:54.3]} 1-0

[Event "*** Titled Tuesday Blitz"]
[Site "Chess.com"]
[Date "2021.03.30"]
[Round "4"]
[White "wonderfultime"]
[Black "Aleksey_Sorokin"]
[Result "1-0"]
[WhiteElo "2991"]
[BlackElo "2759"]
[TimeControl "180+1"]
[EndTime "10:37:33 PDT"]
[Termination "wonderfultime won by resignation"]

1. d4 {[%clk 0:03:00.9]} 1... Nf6 {[%clk 0:02:58.7]} 2. Nf3 {[%clk 0:03:00.1]}
2... g6 {[%clk 0:02:59]} 3. Bg5 {[%clk 0:03:00.2]} 3... Bg7 {[%clk 0:02:57.7]}
4. Nbd2 {[%clk 0:03:00.7]} 4... O-O {[%clk 0:02:57.8]} 5. c3 {[%clk 0:03:01.3]}
5... b6 {[%clk 0:02:54.4]} 6. e4 {[%clk 0:03:01.4]} 6... Bb7 {[%clk 0:02:54.5]}
7. Bd3 {[%clk 0:03:00.5]} 7... d5 {[%clk 0:02:54.1]} 8. e5 {[%clk 0:02:49.2]}
8... Ne4 {[%clk 0:02:53.6]} 9. Bh4 {[%clk 0:02:49.9]} 9... f5 {[%clk 0:02:49.1]}
10. exf6 {[%clk 0:02:37.5]} 10... exf6 {[%clk 0:02:44.1]} 11. O-O {[%clk
0:02:36.6]} 11... g5 {[%clk 0:02:42.3]} 12. Bg3 {[%clk 0:02:36.6]} 12... Nd7
{[%clk 0:02:42.3]} 13. c4 {[%clk 0:01:52.5]} 13... f5 {[%clk 0:02:36]} 14. Be5
{[%clk 0:01:47.3]} 14... Nxe5 {[%clk 0:02:33.5]} 15. Nxe5 {[%clk 0:01:47.2]}
15... c5 {[%clk 0:02:32.2]} 16. cxd5 {[%clk 0:01:24.4]} 16... cxd4 {[%clk
0:02:21.4]} 17. Nc6 {[%clk 0:01:21.9]} 17... Bxc6 {[%clk 0:02:09.3]} 18. dxc6
{[%clk 0:01:22.8]} 18... Nc5 {[%clk 0:02:04.7]} 19. Bc4+ {[%clk 0:01:23.1]}
19... Kh8 {[%clk 0:02:04.8]} 20. b4 {[%clk 0:01:23.8]} 20... Ne4 {[%clk
0:02:03.3]} 21. Re1 {[%clk 0:01:20.3]} 21... d3 {[%clk 0:02:00]} 22. Rc1 {[%clk
0:01:17.5]} 22... Nxf2 {[%clk 0:01:50.5]} 23. Kxf2 {[%clk 0:01:10.6]} 23... Bd4+
{[%clk 0:01:50.5]} 24. Kf1 {[%clk 0:01:08]} 24... g4 {[%clk 0:01:51]} 25. Nb3
{[%clk 0:01:01.6]} 25... Qh4 {[%clk 0:01:29.9]} 26. Nxd4 {[%clk 0:00:58.6]}
26... Qxh2 {[%clk 0:01:30.1]} 27. Qxd3 {[%clk 0:00:54.2]} 27... Rad8 {[%clk
0:01:24]} 28. Qc3 {[%clk 0:00:42.5]} 28... Qh1+ {[%clk 0:01:14.3]} 29. Kf2
{[%clk 0:00:42.7]} 29... g3+ {[%clk 0:01:03.6]} 30. Qxg3 {[%clk 0:00:40.9]} 1-0

[Event "*** Titled Tuesday Blitz"]
[Site "Chess.com"]
[Date "2021.03.30"]
[Round "4"]
[White "FMJoseHerrera"]
[Black "steka121"]
[Result "0-1"]
[WhiteElo "2540"]
[BlackElo "2387"]
[TimeControl "180+1"]
[EndTime "10:37:35 PDT"]
[Termination "steka121 won by resignation"]

1. Nf3 {[%clk 0:03:00.9]} 1... e6 {[%clk 0:02:59.2]} 2. g3 {[%clk 0:03:01.8]}
2... b5 {[%clk 0:02:59.3]} 3. Bg2 {[%clk 0:03:02.7]} 3... Bb7 {[%clk 0:02:59.8]}
4. O-O {[%clk 0:03:03.6]} 4... Be7 {[%clk 0:03:00.1]} 5. d3 {[%clk 0:03:04.2]}
5... Nf6 {[%clk 0:03:00]} 6. a4 {[%clk 0:03:05.1]} 6... b4 {[%clk 0:03:00.2]} 7.
c4 {[%clk 0:03:05.4]} 7... bxc3 {[%clk 0:02:59.2]} 8. bxc3 {[%clk 0:03:05.5]}
8... O-O {[%clk 0:02:58.6]} 9. Ba3 {[%clk 0:03:04.6]} 9... Bxa3 {[%clk
0:02:57.7]} 10. Nxa3 {[%clk 0:03:05.5]} 10... d5 {[%clk 0:02:57.2]} 11. Qc2
{[%clk 0:03:04.8]} 11... c5 {[%clk 0:02:54.8]} 12. Rfb1 {[%clk 0:03:04.7]} 12...
Qc8 {[%clk 0:02:48.8]} 13. Nb5 {[%clk 0:03:03.4]} 13... Rd8 {[%clk 0:02:46.8]}
14. c4 {[%clk 0:03:00.2]} 14... Nc6 {[%clk 0:02:42.2]} 15. cxd5 {[%clk
0:02:58.3]} 15... Nb4 {[%clk 0:02:42.3]} 16. Rxb4 {[%clk 0:02:41.3]} 16... cxb4
{[%clk 0:02:42.5]} 17. Qxc8 {[%clk 0:02:42.2]} 17... Raxc8 {[%clk 0:02:25.8]}
18. dxe6 {[%clk 0:02:43.1]} 18... fxe6 {[%clk 0:02:24.5]} 19. Nxa7 {[%clk
0:02:37.4]} 19... Rc2 {[%clk 0:02:24.1]} 20. Nb5 {[%clk 0:02:34.3]} 20... Bxf3
{[%clk 0:02:16.7]} 21. Bxf3 {[%clk 0:02:33.2]} 21... b3 {[%clk 0:02:14.9]} 22.
Rb1 {[%clk 0:02:33.3]} 22... b2 {[%clk 0:02:13.1]} 23. Kg2 {[%clk 0:02:33.9]}
23... Rb8 {[%clk 0:02:08.1]} 24. e4 {[%clk 0:02:21.1]} 24... h5 {[%clk
0:01:57.8]} 25. d4 {[%clk 0:02:01.2]} 25... Ng4 {[%clk 0:01:54.7]} 26. Bxg4
{[%clk 0:01:39.5]} 26... hxg4 {[%clk 0:01:54.7]} 27. d5 {[%clk 0:01:40.4]} 27...
Rf8 {[%clk 0:01:45.5]} 28. d6 {[%clk 0:00:46.1]} 28... Rfxf2+ {[%clk 0:01:30.8]}
29. Kg1 {[%clk 0:00:45.4]} 29... Rg2+ {[%clk 0:01:30]} 30. Kh1 {[%clk
0:00:44.4]} 30... Rxh2+ {[%clk 0:01:29.8]} 31. Kg1 {[%clk 0:00:45.3]} 31...
Rcg2+ {[%clk 0:01:25.9]} 32. Kf1 {[%clk 0:00:45.6]} 32... Rh1+ {[%clk
0:01:25.3]} 33. Kxg2 {[%clk 0:00:46.5]} 33... Rxb1 {[%clk 0:01:25]} 34. Nc3
{[%clk 0:00:46.1]} 34... Rd1 {[%clk 0:01:21]} 0-1

[Event "*** Titled Tuesday Blitz"]
[Site "Chess.com"]
[Date "2021.03.30"]
[Round "4"]
[White "jacky72"]
[Black "vugarrasulov"]
[Result "0-1"]
[WhiteElo "2706"]
[BlackElo "2870"]
[TimeControl "180+1"]
[EndTime "10:37:53 PDT"]
[Termination "vugarrasulov won by checkmate"]

1. d4 {[%clk 0:03:00.9]} 1... Nf6 {[%clk 0:03:00.4]} 2. c4 {[%clk 0:03:01]} 2...
e6 {[%clk 0:03:01.1]} 3. Nf3 {[%clk 0:03:01.4]} 3... b6 {[%clk 0:03:00.8]} 4. g3
{[%clk 0:03:01.4]} 4... Bb7 {[%clk 0:03:01.3]} 5. Bg2 {[%clk 0:03:01.4]} 5...
Be7 {[%clk 0:03:01.9]} 6. O-O {[%clk 0:03:01.9]} 6... O-O {[%clk 0:03:02.5]} 7.
Re1 {[%clk 0:03:02.8]} 7... c5 {[%clk 0:03:01.8]} 8. d5 {[%clk 0:03:02.3]} 8...
exd5 {[%clk 0:03:02.7]} 9. cxd5 {[%clk 0:02:54.8]} 9... Bxd5 {[%clk 0:03:02.8]}
10. Nc3 {[%clk 0:02:55.4]} 10... Bb7 {[%clk 0:03:01.8]} 11. e4 {[%clk 0:02:56]}
11... d5 {[%clk 0:02:54.4]} 12. exd5 {[%clk 0:02:53.6]} 12... Re8 {[%clk
0:02:49.1]} 13. Nh4 {[%clk 0:02:43.7]} 13... Na6 {[%clk 0:02:34.6]} 14. Nf5
{[%clk 0:02:16.1]} 14... Bf8 {[%clk 0:02:34.6]} 15. Rxe8 {[%clk 0:02:09.8]}
15... Qxe8 {[%clk 0:02:32.3]} 16. Bf4 {[%clk 0:02:02.5]} 16... Qd7 {[%clk
0:02:30.7]} 17. Ne3 {[%clk 0:01:52.3]} 17... Re8 {[%clk 0:02:28.1]} 18. Qb3
{[%clk 0:01:48.9]} 18... Nb4 {[%clk 0:02:26.7]} 19. Rd1 {[%clk 0:01:45]} 19...
Ba6 {[%clk 0:02:16.8]} 20. Bg5 {[%clk 0:01:18.2]} 20... Ng4 {[%clk 0:02:16.1]}
21. Bh3 {[%clk 0:01:16.9]} 21... f5 {[%clk 0:02:06.6]} 22. d6+ {[%clk
0:01:06.4]} 22... Kh8 {[%clk 0:02:05.7]} 23. Nxg4 {[%clk 0:01:06.7]} 23... fxg4
{[%clk 0:02:06.6]} 24. Bg2 {[%clk 0:01:06.8]} 24... Bd3 {[%clk 0:01:57.2]} 25.
Rc1 {[%clk 0:00:32]} 25... Bxd6 {[%clk 0:01:55.4]} 26. a3 {[%clk 0:00:32]} 26...
c4 {[%clk 0:01:46.1]} 27. Qd1 {[%clk 0:00:28.2]} 27... Nc6 {[%clk 0:01:42.5]}
28. Nb5 {[%clk 0:00:23.9]} 28... Ne5 {[%clk 0:01:37.9]} 29. Nxd6 {[%clk
0:00:20.2]} 29... Qxd6 {[%clk 0:01:38.8]} 30. Bf4 {[%clk 0:00:21.1]} 30... Qd4
{[%clk 0:01:35.2]} 31. Qd2 {[%clk 0:00:19.1]} 31... Nf3+ {[%clk 0:01:27.7]} 32.
Bxf3 {[%clk 0:00:19.2]} 32... gxf3 {[%clk 0:01:28.6]} 33. Be3 {[%clk 0:00:19.8]}
33... Qd7 {[%clk 0:01:27.1]} 34. Qc3 {[%clk 0:00:20]} 34... Qh3 {[%clk
0:01:26.7]} 35. Bh6 {[%clk 0:00:14.4]} 35... Qg2# {[%clk 0:01:26.7]} 0-1

[Event "*** Titled Tuesday Blitz"]
[Site "Chess.com"]
[Date "2021.03.30"]
[Round "4"]
[White "Khnykin_Nikolay"]
[Black "rugbyclub"]
[Result "0-1"]
[WhiteElo "2033"]
[BlackElo "2272"]
[TimeControl "180+1"]
[EndTime "10:37:55 PDT"]
[Termination "rugbyclub won by resignation"]

1. e4 {[%clk 0:03:00.9]} 1... e6 {[%clk 0:02:20.4]} 2. Nf3 {[%clk 0:02:52.9]}
2... d5 {[%clk 0:02:20.3]} 3. exd5 {[%clk 0:02:43.6]} 3... exd5 {[%clk
0:02:20.3]} 4. d4 {[%clk 0:02:43]} 4... Bd6 {[%clk 0:02:20.4]} 5. Nc3 {[%clk
0:02:41.2]} 5... c6 {[%clk 0:02:17.6]} 6. Be2 {[%clk 0:02:38.7]} 6... Bf5 {[%clk
0:02:15.4]} 7. Bg5 {[%clk 0:02:34.1]} 7... Ne7 {[%clk 0:02:11.7]} 8. Qd2 {[%clk
0:02:28]} 8... Qc7 {[%clk 0:02:09.1]} 9. O-O-O {[%clk 0:02:17.1]} 9... f6 {[%clk
0:02:07.4]} 10. Be3 {[%clk 0:02:12.4]} 10... Nd7 {[%clk 0:02:03.9]} 11. Rdg1
{[%clk 0:01:57.2]} 11... g5 {[%clk 0:02:01.9]} 12. g4 {[%clk 0:01:56]} 12... Be4
{[%clk 0:01:51.5]} 13. h4 {[%clk 0:01:36.4]} 13... O-O-O {[%clk 0:01:48.8]} 14.
hxg5 {[%clk 0:01:34.1]} 14... fxg5 {[%clk 0:01:47.5]} 15. Bxg5 {[%clk
0:01:32.7]} 15... Rdf8 {[%clk 0:01:47.2]} 16. Bxe7 {[%clk 0:01:24.2]} 16... Bxe7
{[%clk 0:01:44.9]} 17. Nxe4 {[%clk 0:01:22.8]} 17... dxe4 {[%clk 0:01:43.6]} 18.
Ne5 {[%clk 0:01:18.9]} 18... Nxe5 {[%clk 0:01:42.8]} 19. dxe5 {[%clk 0:01:18.7]}
19... Qxe5 {[%clk 0:01:43.5]} 20. Rd1 {[%clk 0:01:01.2]} 20... Bg5 {[%clk
0:01:40.9]} 21. Kb1 {[%clk 0:00:31.5]} 21... Bxd2 {[%clk 0:01:34.1]} 22. Rxd2
{[%clk 0:00:30.7]} 22... Rxf2 {[%clk 0:01:30.4]} 23. Rhd1 {[%clk 0:00:30.3]}
23... e3 {[%clk 0:01:26.4]} 24. Rd6 {[%clk 0:00:11.9]} 24... Rxe2 {[%clk
0:01:23.7]} 25. Rd7 {[%clk 0:00:08.6]} 25... Rd2 {[%clk 0:01:22]} 26. R7xd2
{[%clk 0:00:07.1]} 26... exd2 {[%clk 0:01:22.1]} 27. a3 {[%clk 0:00:07.1]} 27...
Qe1 {[%clk 0:01:18]} 28. Rxe1 {[%clk 0:00:06.4]} 28... dxe1=Q+ {[%clk
0:01:16.9]} 29. Ka2 {[%clk 0:00:06.1]} 29... Qe2 {[%clk 0:01:17.1]} 0-1

[Event "*** Titled Tuesday Blitz"]
[Site "Chess.com"]
[Date "2021.03.30"]
[Round "4"]
[White "AldokhinIvan"]
[Black "OlifantCZ"]
[Result "1-0"]
[WhiteElo "2532"]
[BlackElo "2310"]
[TimeControl "180+1"]
[EndTime "10:37:59 PDT"]
[Termination "AldokhinIvan won by resignation"]

1. e4 {[%clk 0:02:50.3]} 1... e6 {[%clk 0:02:59.6]} 2. d4 {[%clk 0:02:50]} 2...
d5 {[%clk 0:02:59.4]} 3. Nc3 {[%clk 0:02:50.6]} 3... Bb4 {[%clk 0:02:58.6]} 4.
Ne2 {[%clk 0:02:49.6]} 4... dxe4 {[%clk 0:02:55.2]} 5. a3 {[%clk 0:02:49.5]}
5... Be7 {[%clk 0:02:55.4]} 6. Nxe4 {[%clk 0:02:49.4]} 6... Nf6 {[%clk 0:02:56]}
7. Nxf6+ {[%clk 0:02:48.6]} 7... Bxf6 {[%clk 0:02:55.2]} 8. g3 {[%clk
0:02:43.9]} 8... c5 {[%clk 0:02:50.7]} 9. Be3 {[%clk 0:02:40.6]} 9... Nc6 {[%clk
0:02:45.1]} 10. dxc5 {[%clk 0:02:16.4]} 10... Bxb2 {[%clk 0:02:37.8]} 11. Qxd8+
{[%clk 0:02:11.4]} 11... Kxd8 {[%clk 0:02:37.4]} 12. Rb1 {[%clk 0:01:58.3]}
12... Bf6 {[%clk 0:02:30.5]} 13. Bg2 {[%clk 0:01:55.9]} 13... Kc7 {[%clk
0:02:27.2]} 14. Bd2 {[%clk 0:01:30.6]} 14... Bd7 {[%clk 0:02:17.4]} 15. Nc3
{[%clk 0:01:28]} 15... a6 {[%clk 0:02:14.3]} 16. Ne4 {[%clk 0:01:23.8]} 16...
Be7 {[%clk 0:02:13.3]} 17. O-O {[%clk 0:01:13.7]} 17... f5 {[%clk 0:02:09.8]}
18. Nd6 {[%clk 0:00:58.4]} 18... Bxd6 {[%clk 0:02:07.6]} 19. cxd6+ {[%clk
0:00:56.8]} 19... Kxd6 {[%clk 0:01:22.4]} 20. Rxb7 {[%clk 0:00:55.7]} 20... Rab8
{[%clk 0:01:16.9]} 21. Bf4+ {[%clk 0:00:55]} 21... e5 {[%clk 0:01:10]} 22. Rd1+
{[%clk 0:00:51.1]} 22... Nd4 {[%clk 0:01:05.1]} 23. Rxd4+ {[%clk 0:00:49.5]}
23... Ke6 {[%clk 0:00:54.1]} 24. Rdxd7 {[%clk 0:00:45.9]} 24... Rxb7 {[%clk
0:00:49.2]} 25. Rxb7 {[%clk 0:00:45.7]} 25... exf4 {[%clk 0:00:49.4]} 26. gxf4
{[%clk 0:00:46.6]} 26... Rc8 {[%clk 0:00:43.3]} 27. Rb6+ {[%clk 0:00:45.9]}
27... Kf7 {[%clk 0:00:40.3]} 28. c4 {[%clk 0:00:44.3]} 28... Ke7 {[%clk
0:00:37.8]} 29. Bd5 {[%clk 0:00:40.1]} 1-0

[Event "*** Titled Tuesday Blitz"]
[Site "Chess.com"]
[Date "2021.03.30"]
[Round "4"]
[White "crazy_but_lazy"]
[Black "VladimirBugayev"]
[Result "0-1"]
[WhiteElo "2447"]
[BlackElo "2298"]
[TimeControl "180+1"]
[EndTime "10:38:02 PDT"]
[Termination "VladimirBugayev won by resignation"]

1. d4 {[%clk 0:03:00.9]} 1... Nf6 {[%clk 0:02:59.3]} 2. c4 {[%clk 0:02:59.4]}
2... c5 {[%clk 0:02:59.3]} 3. d5 {[%clk 0:02:59.5]} 3... b5 {[%clk 0:02:59.9]}
4. Nd2 {[%clk 0:02:58.7]} 4... b4 {[%clk 0:02:58.7]} 5. e4 {[%clk 0:02:58.6]}
5... d6 {[%clk 0:02:59]} 6. Ngf3 {[%clk 0:02:58.8]} 6... g6 {[%clk 0:02:59.6]}
7. a4 {[%clk 0:02:58.5]} 7... Bg7 {[%clk 0:02:50.3]} 8. Bd3 {[%clk 0:02:57.5]}
8... O-O {[%clk 0:02:43.2]} 9. O-O {[%clk 0:02:56.9]} 9... e5 {[%clk 0:02:40.6]}
10. b3 {[%clk 0:02:29.4]} 10... a5 {[%clk 0:02:37.6]} 11. Bb2 {[%clk 0:02:24.1]}
11... Nh5 {[%clk 0:02:36.4]} 12. Re1 {[%clk 0:02:23.7]} 12... Ra7 {[%clk
0:02:32.4]} 13. Nf1 {[%clk 0:02:14.8]} 13... f5 {[%clk 0:02:10.7]} 14. exf5
{[%clk 0:02:05.3]} 14... gxf5 {[%clk 0:02:10.1]} 15. Nxe5 {[%clk 0:02:05.4]}
15... Nf4 {[%clk 0:01:47.5]} 16. Nc6 {[%clk 0:02:05.1]} 16... Nxc6 {[%clk
0:01:43.6]} 17. Bxg7 {[%clk 0:02:04.6]} 17... Rxg7 {[%clk 0:01:43.2]} 18. dxc6
{[%clk 0:01:15.7]} 18... Nh3+ {[%clk 0:01:39]} 19. Kh1 {[%clk 0:01:16.3]} 19...
Nxf2+ {[%clk 0:01:39.6]} 20. Kg1 {[%clk 0:01:16.9]} 20... Nxd1 {[%clk
0:01:39.5]} 21. Raxd1 {[%clk 0:01:17.8]} 21... Qc7 {[%clk 0:01:28.1]} 22. Be2
{[%clk 0:01:17.7]} 22... Qxc6 {[%clk 0:01:27.1]} 23. Bf3 {[%clk 0:01:18.2]}
23... Qc7 {[%clk 0:01:24.6]} 24. Ne3 {[%clk 0:01:17]} 24... Bb7 {[%clk
0:01:23.7]} 25. Nd5 {[%clk 0:01:08.8]} 25... Bxd5 {[%clk 0:01:23.2]} 26. Bxd5+
{[%clk 0:01:09.7]} 26... Kh8 {[%clk 0:01:23.4]} 27. Re6 {[%clk 0:01:10.3]} 27...
Qd7 {[%clk 0:01:14.1]} 28. Rde1 {[%clk 0:01:10]} 28... f4 {[%clk 0:01:12.8]} 29.
Kf2 {[%clk 0:01:09.5]} 29... Qd8 {[%clk 0:01:10.8]} 30. Rh6 {[%clk 0:00:37.8]}
30... Qg5 {[%clk 0:01:01.7]} 31. Ree6 {[%clk 0:00:32.8]} 31... f3 {[%clk
0:00:58.6]} 32. Bxf3 {[%clk 0:00:31.8]} 32... Qxg2+ {[%clk 0:00:57.6]} 33. Ke1
{[%clk 0:00:32]} 33... Rxf3 {[%clk 0:00:54.1]} 34. Re8+ {[%clk 0:00:30.4]} 34...
Rg8 {[%clk 0:00:54.4]} 35. Rhe6 {[%clk 0:00:30.5]} 0-1

[Event "*** Titled Tuesday Blitz"]
[Site "Chess.com"]
[Date "2021.03.30"]
[Round "4"]
[White "Pelopidass"]
[Black "BJthechessgod"]
[Result "1-0"]
[WhiteElo "2574"]
[BlackElo "2326"]
[TimeControl "180+1"]
[EndTime "10:38:05 PDT"]
[Termination "Pelopidass won by checkmate"]

1. Nf3 {[%clk 0:03:00.9]} 1... c5 {[%clk 0:02:59]} 2. g3 {[%clk 0:02:59.1]} 2...
Nc6 {[%clk 0:02:58.7]} 3. Bg2 {[%clk 0:02:59]} 3... g6 {[%clk 0:02:59.1]} 4. O-O
{[%clk 0:02:59.1]} 4... Bg7 {[%clk 0:02:59.8]} 5. d3 {[%clk 0:02:58.8]} 5... d6
{[%clk 0:02:58.5]} 6. e4 {[%clk 0:02:56.6]} 6... Nf6 {[%clk 0:02:58.5]} 7. Nc3
{[%clk 0:02:56.3]} 7... O-O {[%clk 0:02:58.5]} 8. h3 {[%clk 0:02:56.7]} 8... Rb8
{[%clk 0:02:56]} 9. Be3 {[%clk 0:02:56.9]} 9... b5 {[%clk 0:02:55.8]} 10. Qd2
{[%clk 0:02:57]} 10... b4 {[%clk 0:02:53.6]} 11. Ne2 {[%clk 0:02:56]} 11... Nd7
{[%clk 0:02:52.5]} 12. Rab1 {[%clk 0:02:51.1]} 12... Ba6 {[%clk 0:02:46.7]} 13.
Bh6 {[%clk 0:02:50.7]} 13... Nde5 {[%clk 0:02:39.3]} 14. Bxg7 {[%clk 0:02:45.3]}
14... Nxf3+ {[%clk 0:02:37.3]} 15. Bxf3 {[%clk 0:02:45]} 15... Kxg7 {[%clk
0:02:38.2]} 16. Bg2 {[%clk 0:02:44]} 16... Bc8 {[%clk 0:02:24.7]} 17. f4 {[%clk
0:02:41.5]} 17... e5 {[%clk 0:02:16.9]} 18. c3 {[%clk 0:02:21]} 18... a5 {[%clk
0:02:02.3]} 19. Kh2 {[%clk 0:02:18.2]} 19... f6 {[%clk 0:01:58.4]} 20. d4 {[%clk
0:02:15.5]} 20... cxd4 {[%clk 0:01:45.3]} 21. cxd4 {[%clk 0:02:15.3]} 21... Ba6
{[%clk 0:01:43.8]} 22. Rfc1 {[%clk 0:02:02.9]} 22... Rc8 {[%clk 0:01:36.4]} 23.
d5 {[%clk 0:01:54.4]} 23... Ne7 {[%clk 0:01:34.1]} 24. Ng1 {[%clk 0:01:47.2]}
24... Qb6 {[%clk 0:01:32.6]} 25. Nf3 {[%clk 0:01:45.8]} 25... Rxc1 {[%clk
0:00:57]} 26. Rxc1 {[%clk 0:01:46.7]} 26... Rc8 {[%clk 0:00:57.2]} 27. fxe5
{[%clk 0:01:42.6]} 27... fxe5 {[%clk 0:00:52.7]} 28. Ng5 {[%clk 0:01:21.4]}
28... Rxc1 {[%clk 0:00:33.4]} 29. Ne6+ {[%clk 0:01:19.6]} 29... Kf7 {[%clk
0:00:31.2]} 30. Qxc1 {[%clk 0:01:19.6]} 30... Bc8 {[%clk 0:00:25.5]} 31. Qf1+
{[%clk 0:01:14.5]} 31... Ke8 {[%clk 0:00:22.9]} 32. Qf8+ {[%clk 0:01:07.5]}
32... Kd7 {[%clk 0:00:23.3]} 33. h4 {[%clk 0:01:03.9]} 33... h5 {[%clk
0:00:22.5]} 34. Kh1 {[%clk 0:00:57.2]} 34... Qe3 {[%clk 0:00:21.1]} 35. Qd8#
{[%clk 0:00:56.5]} 1-0

[Event "*** Titled Tuesday Blitz"]
[Site "Chess.com"]
[Date "2021.03.30"]
[Round "4"]
[White "gatocorbis"]
[Black "Nemsko"]
[Result "0-1"]
[WhiteElo "2089"]
[BlackElo "2327"]
[TimeControl "180+1"]
[EndTime "10:38:05 PDT"]
[Termination "Nemsko won on time"]

1. d4 {[%clk 0:02:49.9]} 1... Nf6 {[%clk 0:03:00]} 2. c4 {[%clk 0:02:46.4]} 2...
g6 {[%clk 0:02:59]} 3. Nc3 {[%clk 0:02:44.4]} 3... d5 {[%clk 0:02:57.7]} 4. cxd5
{[%clk 0:02:41.3]} 4... Nxd5 {[%clk 0:02:58.6]} 5. Nf3 {[%clk 0:02:38.6]} 5...
Bg7 {[%clk 0:02:58.1]} 6. h4 {[%clk 0:02:37.6]} 6... h5 {[%clk 0:02:54.5]} 7. g3
{[%clk 0:02:25.6]} 7... O-O {[%clk 0:02:51.4]} 8. Bg5 {[%clk 0:02:19.8]} 8... c6
{[%clk 0:02:47.7]} 9. Bg2 {[%clk 0:02:18.1]} 9... Na6 {[%clk 0:02:33.4]} 10. Qd2
{[%clk 0:02:16]} 10... Nac7 {[%clk 0:02:29.1]} 11. Bh6 {[%clk 0:02:11.6]} 11...
b5 {[%clk 0:02:22.9]} 12. Bxg7 {[%clk 0:02:09]} 12... Kxg7 {[%clk 0:02:23.8]}
13. Ne5 {[%clk 0:02:06.5]} 13... Bb7 {[%clk 0:02:20.1]} 14. g4 {[%clk 0:01:52]}
14... f6 {[%clk 0:02:06.5]} 15. Nxg6 {[%clk 0:01:18]} 15... Kxg6 {[%clk
0:02:07.4]} 16. Be4+ {[%clk 0:01:13.5]} 16... Kf7 {[%clk 0:02:04]} 17. gxh5
{[%clk 0:01:10.3]} 17... Ke8 {[%clk 0:01:59.4]} 18. Bg6+ {[%clk 0:00:53.8]}
18... Kd7 {[%clk 0:01:59.4]} 19. e4 {[%clk 0:00:52.7]} 19... Nxc3 {[%clk
0:01:57.8]} 20. bxc3 {[%clk 0:00:50]} 20... e6 {[%clk 0:01:56.4]} 21. O-O-O
{[%clk 0:00:37.7]} 21... Qe7 {[%clk 0:01:56.4]} 22. d5 {[%clk 0:00:32.5]} 22...
cxd5 {[%clk 0:01:53.1]} 23. exd5 {[%clk 0:00:27.8]} 23... Bxd5 {[%clk 0:01:54]}
24. Be4 {[%clk 0:00:23.4]} 24... Qa3+ {[%clk 0:01:52.7]} 25. Kb1 {[%clk
0:00:21.7]} 25... Ke7 {[%clk 0:01:37.8]} 26. h6 {[%clk 0:00:11.9]} 26... Rad8
{[%clk 0:01:36.2]} 27. Qf4 {[%clk 0:00:06.4]} 27... Bxa2+ {[%clk 0:01:28.7]} 28.
Kc2 {[%clk 0:00:03.3]} 28... Qb3+ {[%clk 0:01:15.3]} 29. Kc1 {[%clk 0:00:02.3]}
29... Qxc3+ {[%clk 0:01:15.6]} 30. Bc2 {[%clk 0:00:01.2]} 30... Qa1+ {[%clk
0:01:15.3]} 0-1